bitfinex/quotes_ETHUSD_20230701
["timestamp","ask_amount","ask_price","bid_price","bid_amount"]
[1688207033094,0.13441456,1923.8,1923.6,16.16397184]
[1688207033387,0.13441456,1923.8,1923.6,13.56468184]
[1688207033779,0.13441456,1923.8,1923.6,16.16397184]
[1688207033975,0.13441456,1923.8,1923.6,13.56468184]
[1688207034174,0.13441456,1923.8,1923.6,16.16397184]
[1688207034479,0.13441456,1923.8,1923.6,13.56468184]
[1688207034919,0.13441456,1923.8,1923.6,8.36610184]
[1688207035323,5.33251456,1923.8,1923.6,8.36610184]
[1688207036216,5.33251456,1923.8,1923.6,13.56468184]
[1688207037910,0.13441456,1923.8,1923.6,13.56468184]
[1688207038509,0.13441456,1923.8,1923.6,16.16397184]
[1688207038705,0.13441456,1923.8,1923.6,18.78820502]
[1688207039201,0.13441456,1923.8,1923.6,24.26720502]
[1688207039923,0.13441456,1923.8,1923.7,15.56026155]
[1688207040121,1.32443844,1924.1,1923.7,15.56026155]
[1688207040122,1.32443844,1924.1,1924.0,7.479]
[1688207040329,0.1,1924.3,1924.0,7.479]
[1688207040330,0.1,1924.3,1924.2,15.29252184]
[1688207040480,0.1,1924.3,1924.2,36.78363502]
[1688207040683,0.1,1924.3,1924.2,33.65763502]
[1688207040916,0.1,1924.3,1924.2,33.28785402]
[1688207041109,0.1,1924.3,1924.2,33.65763502]
[1688207041318,0.0493158,1925.0,1924.7,5.479]
[1688207041618,0.0493158,1925.0,1924.9,8.16652184]
[1688207041784,0.0493158,1925.0,1924.9,18.55666184]
[1688207041985,0.0493158,1925.0,1924.9,15.67519184]
[1688207042316,0.0493158,1925.0,1924.9,21.63419184]
[1688207044317,0.0493158,1925.0,1924.9,8.36259184]
[1688207044521,5.76850338,1925.0,1924.9,2.68752184]
[1688207045298,5.2441158,1925.0,1924.9,2.68752184]
[1688207045492,0.0493158,1925.0,1924.9,7.88259184]
[1688207046083,0.0493158,1925.0,1924.9,13.07766184]
[1688207046383,0.0493158,1925.0,1924.9,13.55766184]
[1688207046799,0.0493158,1925.0,1924.9,8.36259184]
[1688207047209,0.0493158,1925.0,1924.9,13.55766184]
[1688207047413,0.0493158,1925.0,1924.9,3.16752184]
[1688207047600,0.0493158,1925.0,1924.9,13.55766184]
[1688207047901,0.0493158,1925.0,1924.9,8.36259184]
[1688207048103,0.0493158,1925.0,1924.9,22.39244902]
[1688207048290,0.0493158,1925.0,1924.9,27.98997902]
[1688207049119,1.891,1925.6,1925.2,7.479]
[1688207049318,1.891,1925.6,1925.3,8.36134184]
[1688207049319,0.130219,1925.5,1925.3,8.36134184]
[1688207049520,5.323789,1925.5,1925.3,8.36134184]
[1688207050095,0.130219,1925.5,1925.3,8.36134184]
[1688207050430,0.130219,1925.5,1925.3,13.55533184]
[1688207050724,0.130219,1925.5,1925.3,18.51546302]
[1688207052325,0.130219,1925.5,1925.3,13.55533184]
[1688207052624,0.130219,1925.5,1925.3,8.36134184]
[1688207053222,0.130219,1925.5,1925.3,2.68752184]
[1688207053531,13.13048501,1925.5,1925.3,2.68752184]
[1688207054430,13.13048501,1925.5,1925.0,2.0]
[1688207054431,0.130219,1925.3,1925.0,2.0]
[1688207054595,2.021219,1925.1,1924.7,5.0]
[1688207054800,2.021219,1925.1,1924.8,2.68752184]
[1688207054801,7.086,1925.0,1924.8,2.68752184]
[1688207055410,12.281,1925.0,1924.8,2.68752184]
[1688207055899,7.086,1925.0,1924.8,2.68752184]
[1688207056418,1.873,1924.9,1924.7,2.0]
[1688207056728,7.06817,1924.9,1924.7,4.68752184]
[1688207057327,12.26334,1924.9,1924.7,4.68752184]
[1688207057538,7.06817,1924.9,1924.7,4.68752184]
[1688207057732,7.198389,1924.9,1924.7,4.68752184]
[1688207057939,7.198389,1924.9,1924.7,2.68752184]
[1688207057940,8.3090525,1924.9,1924.7,2.68752184]
[1688207058136,13.6343415,1924.9,1924.7,2.68752184]
[1688207058321,8.4392715,1924.9,1924.7,2.68752184]
[1688207058514,13.6343415,1924.9,1924.7,2.68752184]
[1688207059236,8.4392715,1924.9,1924.7,2.68752184]
[1688207059612,13.6343415,1924.9,1924.7,2.68752184]
[1688207060935,16.2318715,1924.9,1924.7,2.68752184]
[1688207061237,16.2318715,1924.9,1924.6,2.0]
[1688207061416,16.2318715,1924.9,1924.6,2.68752184]
[1688207062043,13.6343415,1924.9,1924.6,2.68752184]
[1688207062246,3.23643415,1924.8,1924.6,2.68752184]
[1688207062554,3.23643415,1924.8,1924.6,7.88339184]
[1688207063021,3.23643415,1924.8,1924.5,8.19604]
[1688207063222,8.43188415,1924.8,1924.5,7.88356184]
[1688207063459,8.43188415,1924.8,1924.5,7.88364184]
[1688207064146,8.43179415,1924.8,1924.5,7.88364184]
[1688207064383,5.325419,1924.9,1924.7,10.39122]
[1688207064384,2.021219,1924.9,1924.7,10.39122]
[1688207064526,0.130219,1924.9,1924.8,8.36286184]
[1688207064720,0.130219,1924.9,1924.8,3.16752184]
[1688207065121,5.325289,1924.9,1924.8,3.16752184]
[1688207065433,10.520359,1924.9,1924.8,3.16752184]
[1688207066553,14.6169649,1924.9,1924.8,3.16752184]
[1688207066922,14.6169649,1924.9,1924.4,2.0]
[1688207067119,14.63344091,1924.9,1924.5,7.88366184]
[1688207067355,14.63344091,1924.9,1924.6,0.48]
[1688207067528,14.63344091,1924.9,1924.6,2.68752184]
[1688207067732,10.39122,1924.7,1924.6,2.68752184]
[1688207068940,12.98902,1924.7,1924.6,2.68752184]
[1688207069658,10.39122,1924.7,1924.6,2.68752184]
[1688207070423,10.39297,1924.4,1924.2,2.0]
[1688207070630,5.19642,1924.4,1924.3,2.68752184]
[1688207070827,5.19642,1924.4,1924.1,2.0]
[1688207071053,5.19642,1924.4,1924.2,2.68752184]
[1688207071256,10.39284,1924.4,1924.2,2.68752184]
[1688207072062,12.99105,1924.4,1924.1,2.0]
[1688207072271,12.99105,1924.4,1924.1,2.68752184]
[1688207072272,16.1941769,1924.4,1924.1,2.68752184]
[1688207072434,16.1941769,1924.4,1923.9,3.0]
[1688207072639,16.1941769,1924.4,1924.0,2.68752184]
[1688207072640,1.888,1924.3,1924.0,2.68752184]
[1688207072840,7.08486,1924.3,1924.0,7.88499184]
[1688207073064,10.39374,1924.3,1924.0,2.68752184]
[1688207073389,12.05163769,1924.3,1923.9,5.19758]
[1688207073542,12.05163769,1924.3,1924.0,3.0]
[1688207073740,14.64997769,1924.3,1924.0,3.0]
[1688207074538,14.64997769,1924.3,1923.8,5.0]
[1688207074785,16.54097769,1924.3,1923.8,7.68752184]
[1688207075337,0.130219,1924.5,1924.1,12.16652184]
[1688207075569,0.130219,1924.5,1924.2,0.48]
[1688207075777,0.130219,1924.5,1924.3,2.68752184]
[1688207076068,0.130219,1924.5,1924.4,0.48]
[1688207076259,0.130219,1924.5,1924.4,3.16752184]
[1688207076467,13.120589,1924.5,1924.1,9.19708]
[1688207076655,13.120589,1924.5,1924.2,3.16752184]
[1688207076850,14.6702379,1924.5,1924.2,3.16752184]
[1688207078074,10.522519,1924.5,1924.2,3.16752184]
[1688207078280,10.522519,1924.5,1924.2,2.68752184]
[1688207078281,13.120589,1924.5,1924.2,2.68752184]
[1688207078484,13.020589,1924.5,1924.1,5.19698]
[1688207078804,13.020589,1924.5,1924.1,7.88450184]
[1688207078945,13.020589,1924.5,1924.1,2.68752184]
[1688207078946,14.911589,1924.5,1924.1,2.68752184]
[1688207079286,16.6403379,1924.5,1923.9,2.0]
[1688207079488,1.888,1924.4,1924.0,3.16752184]
[1688207079672,5.19674,1924.3,1924.0,3.16752184]
[1688207079894,10.423699,1924.3,1924.0,3.16752184]
[1688207080220,0.030219,1924.3,1924.1,0.31675218]
[1688207080385,0.030219,1924.3,1924.2,13.56144184]
[1688207080572,0.030219,1924.3,1924.2,8.36448184]
[1688207081081,0.030219,1924.3,1924.2,2.68752184]
[1688207081307,0.030219,1924.3,1924.2,13.56144184]
[1688207085470,0.030219,1924.5,1924.2,15.07474261]
[1688207085675,0.030219,1924.5,1924.3,3.16752184]
[1688207085905,10.422529,1924.5,1924.3,3.16752184]
[1688207086347,0.030219,1924.3,1924.0,5.19737]
[1688207086607,10.39392,1924.2,1924.0,2.68752184]
[1688207086973,5.227109,1924.3,1924.0,7.88494184]
[1688207087218,5.227109,1924.3,1924.0,13.08244184]
[1688207087396,5.19689,1924.3,1924.0,13.08244184]
[1688207087579,5.227109,1924.3,1924.0,13.08244184]
[1688207087785,5.19689,1924.3,1924.0,13.08244184]
[1688207088085,10.40952601,1924.4,1924.0,13.08244184]
[1688207088411,0.030219,1924.3,1924.0,13.08244184]
[1688207088591,0.030219,1924.3,1924.1,2.68752184]
[1688207088919,0.030219,1924.3,1924.2,5.19696]
[1688207089084,0.030219,1924.3,1924.2,8.36448184]
[1688207089478,0.030219,1924.3,1924.2,13.56144184]
[1688207090378,12.686839,1924.5,1924.2,13.56144184]
[1688207090603,7.490529,1924.5,1924.3,3.16752184]
[1688207090813,7.490529,1924.5,1924.3,8.36412184]
[1688207091119,12.686839,1924.5,1924.2,5.19696]
[1688207091305,0.030219,1924.3,1924.2,5.19685]
[1688207091511,0.030219,1924.3,1924.2,10.87372]
[1688207091681,0.030219,1924.3,1924.2,13.4722]
[1688207091875,2.294219,1924.5,1924.2,13.4722]
[1688207092129,2.294219,1924.5,1924.3,0.48]
[1688207092285,2.294219,1924.5,1924.4,5.19642]
[1688207092777,0.030219,1924.5,1924.4,5.19642]
[1688207092977,0.030219,1924.5,1924.4,13.47105]
[1688207095378,2.3337,1924.9,1924.5,2.0]
[1688207095581,7.52883,1924.9,1924.6,16.15710184]
[1688207095808,2.3337,1924.9,1924.6,16.15710184]
[1688207096534,0.030219,1924.8,1924.6,16.15710184]
[1688207096830,0.030219,1924.8,1924.6,17.97281202]
[1688207097885,0.030219,1924.8,1924.6,17.84334402]
[1688207098482,0.030219,1925.1,1924.8,15.58568]
[1688207098703,0.030219,1925.1,1925.0,10.3896]
[1688207098933,0.030219,1925.1,1925.0,13.55712184]
[1688207099323,0.030219,1925.1,1925.0,8.36232184]
[1688207099706,0.030219,1925.1,1925.0,3.16752184]
[1688207099957,0.030219,1925.2,1925.0,15.67452184]
[1688207100160,5.19453,1925.1,1925.0,7.88232184]
[1688207100436,5.24110501,1925.2,1925.0,8.36232184]
[1688207100616,0.04669501,1925.2,1925.1,2.68752184]
[1688207100811,0.04669501,1925.2,1925.1,7.88205184]
[1688207100812,0.030219,1925.2,1925.1,7.88205184]
[1688207101019,5.224479,1925.2,1925.1,7.88205184]
[1688207102218,5.224479,1925.2,1925.1,2.68752184]
[1688207103538,6.4884509,1925.2,1925.1,2.68752184]
[1688207103814,0.030219,1924.8,1924.7,5.19545]
[1688207104149,5.225559,1924.8,1924.6,5.19562]
[1688207104327,5.225559,1924.8,1924.6,13.07890184]
[1688207104751,5.225559,1924.8,1924.6,7.88314184]
[1688207104752,10.420899,1924.8,1924.6,7.88314184]
[1688207105111,5.225559,1924.8,1924.6,7.88314184]
[1688207105311,5.225559,1924.8,1924.6,13.07902184]
[1688207105640,11.7227379,1924.8,1924.4,5.1963]
[1688207105844,11.7227379,1924.8,1924.5,2.68752184]
[1688207105845,14.3204079,1924.8,1924.5,2.68752184]
[1688207106344,13.018569,1924.8,1924.5,2.68752184]
[1688207106523,10.420899,1924.8,1924.5,7.88363184]
[1688207107841,10.420899,1924.8,1924.5,13.07978184]
[1688207108912,5.225559,1924.8,1924.5,13.07978184]
[1688207110340,6.576559,1924.8,1924.5,10.39226]
[1688207110544,7.9998295,1924.8,1924.5,10.39226]
[1688207114220,0.030219,1924.6,1924.5,10.39226]
[1688207114544,6.577099,1924.6,1924.2,2.59846]
[1688207114717,1.381219,1924.6,1924.4,10.39284]
[1688207114914,0.030219,1924.6,1924.4,10.39284]
[1688207115565,0.030219,1924.6,1924.4,12.99105]
[1688207115921,0.030219,1924.6,1924.4,10.39284]
[1688207116334,5.226119,1924.6,1924.4,10.39284]
[1688207117339,1.381219,1924.6,1924.4,10.39284]
[1688207118159,6.577119,1924.6,1924.4,10.39284]
[1688207118521,6.577119,1924.6,1924.4,5.19642]
[1688207119342,1.381219,1924.6,1924.4,5.19642]
[1688207119919,1.381219,1924.6,1924.4,10.39284]
[1688207120745,1.381219,1924.6,1924.4,5.19642]
[1688207120940,7.7544119,1924.6,1924.4,5.19642]
[1688207121141,12.9503419,1924.6,1924.4,5.19642]
[1688207121356,12.9423419,1924.6,1924.3,5.19657]
[1688207121657,12.95881791,1924.6,1924.2,5.19684]
[1688207121827,7.84311179,1924.5,1924.3,5.19661]
[1688207122652,7.84311179,1924.5,1924.3,10.3933]
[1688207123936,6.49211179,1924.5,1924.3,10.3933]
[1688207124976,6.49211179,1924.5,1924.3,5.19661]
[1688207126869,6.49211179,1924.5,1924.2,5.19678]
[1688207127369,6.49211179,1924.5,1924.2,10.39359]
[1688207127737,7.84311179,1924.5,1924.2,10.39359]
[1688207128738,2.64688179,1924.5,1924.2,10.39359]
[1688207129674,0.26468818,1924.4,1924.2,10.39359]
[1688207130170,0.26468818,1924.4,1924.2,5.19678]
[1688207130380,0.030219,1924.3,1924.2,10.39374]
[1688207131039,0.030219,1924.3,1924.2,5.19678]
[1688207131239,0.030219,1924.3,1924.2,10.39374]
[1688207131651,0.26468818,1924.4,1924.2,10.39374]
[1688207132265,0.030219,1924.3,1924.2,10.39374]
[1688207134589,7.87332079,1924.5,1924.2,5.19678]
[1688207134776,0.78733208,1924.4,1924.2,10.39374]
[1688207134976,0.78733208,1924.4,1924.2,5.19678]
[1688207135491,0.030219,1924.3,1924.2,5.19678]
[1688207136218,0.030219,1924.3,1924.2,10.39374]
[1688207136493,0.030219,1924.3,1924.2,5.19678]
[1688207138813,6.26994383,1924.3,1924.1,5.19698]
[1688207139088,6.26994383,1924.3,1924.1,10.39421]
[1688207140194,1.07325383,1924.3,1924.0,5.19729]
[1688207140496,1.07325383,1924.3,1924.0,10.39459]
[1688207141406,0.030219,1924.3,1924.0,10.39459]
[1688207141583,0.030219,1924.3,1924.0,12.99334]
[1688207142505,5.226949,1924.3,1924.0,10.39459]
[1688207142799,10.423679,1924.3,1924.0,5.19729]
[1688207147221,0.030219,1924.0,1923.7,1.6189]
[1688207147427,1.381219,1924.0,1923.5,6.73551]
[1688207147635,7.2366499,1924.0,1923.5,6.73551]
[1688207147792,0.030219,1923.8,1923.5,11.93436]
[1688207148193,0.030219,1923.8,1923.5,5.19871]
[1688207148412,0.030219,1923.8,1923.5,10.39756]
[1688207148948,0.030219,1923.8,1923.5,5.19871]
[1688207149340,0.030219,1923.8,1923.5,10.39756]
[1688207149641,0.5530259,1923.8,1923.5,10.39756]
[1688207150111,5.7510759,1923.8,1923.5,10.39756]
[1688207150613,5.7510759,1923.8,1923.5,5.19871]
[1688207151646,10.9491259,1923.8,1923.5,5.19871]
[1688207152034,5.7510759,1923.8,1923.5,5.19871]
[1688207152767,5.7510759,1923.8,1923.4,5.19886]
[1688207153342,10.9491159,1923.8,1923.4,10.39798]
[1688207153566,1.09491159,1923.7,1923.4,5.19886]
[1688207153743,6.29340159,1923.7,1923.3,6.73603]
[1688207153953,6.29340159,1923.7,1923.3,10.3985]
[1688207153954,0.030219,1923.5,1923.3,10.3985]
[1688207155636,5.229099,1923.5,1923.3,10.3985]
[1688207155981,10.39747,1923.6,1923.3,5.19923]
[1688207156137,0.030219,1923.5,1923.3,5.19923]
[1688207156338,5.229089,1923.5,1923.3,5.19923]
[1688207156670,5.229089,1923.5,1923.3,5.19935]
[1688207156671,5.229099,1923.5,1923.3,5.19935]
[1688207156881,10.427979,1923.5,1923.2,10.39903]
[1688207157032,10.427979,1923.5,1923.2,5.19951]
[1688207157468,5.229099,1923.5,1923.2,5.19951]
[1688207157666,5.19888,1923.5,1923.1,11.74272]
[1688207157971,0.030219,1923.5,1923.1,5.1998]
[1688207158267,6.07988831,1923.5,1923.1,10.39973]
[1688207158470,0.030219,1923.3,1923.1,10.39973]
[1688207159452,0.030219,1923.3,1923.1,5.1998]
[1688207159670,0.030219,1923.3,1923.1,10.39973]
[1688207163454,0.030219,1923.3,1923.1,12.99969]
[1688207166676,0.030219,1923.3,1923.1,10.39973]
[1688207169279,0.030219,1923.3,1923.1,12.99969]
[1688207170105,0.030219,1923.3,1923.1,14.559665]
[1688207170307,0.030219,1923.6,1923.2,2.68752184]
[1688207170508,0.030219,1923.6,1923.3,12.99835]
[1688207179778,0.030219,1923.8,1923.4,2.68752184]
[1688207179985,1.45755327,1924.0,1923.5,17.41854]
[1688207179986,0.030219,1923.6,1923.5,17.41854]
[1688207180188,0.030219,1923.6,1923.5,22.11666802]
[1688207180613,0.030219,1923.8,1923.5,22.11666802]
[1688207180780,0.030219,1923.8,1923.5,22.11966802]
[1688207182012,0.417247,1923.9,1923.6,2.68752184]
[1688207182316,0.030219,1924.1,1923.7,12.99577]
[1688207182489,0.030219,1923.8,1923.7,12.99577]
[1688207184331,11.11161585,1924.2,1923.7,12.99577]
[1688207185034,0.030219,1923.8,1923.7,12.99577]
[1688207185443,1.070437,1924.2,1923.7,15.68329184]
[1688207185591,0.030219,1924.2,1923.8,6.08685102]
[1688207185934,0.030219,1924.2,1923.9,12.9943]
[1688207186139,0.030219,1924.2,1923.9,15.68182184]
[1688207186633,10.39301,1924.4,1923.9,15.68182184]
[1688207186634,0.030219,1924.0,1923.9,15.68182184]
[1688207186837,0.030219,1924.0,1923.9,18.32982794]
[1688207197334,0.030219,1924.0,1923.9,15.73096794]
[1688207197540,0.030219,1924.0,1923.9,18.32984794]
[1688207198144,0.030219,1924.0,1923.9,10.53324794]
[1688207198442,0.030219,1924.0,1923.9,16.16189184]
[1688207198911,0.030219,1924.0,1923.9,13.56301184]
[1688207200323,0.030219,1924.0,1923.9,3.16752184]
[1688207200526,0.030219,1924.0,1923.9,8.36529184]
[1688207201145,0.030219,1924.0,1923.9,13.56306184]
[1688207201345,0.030219,1924.0,1923.9,5.19777]
[1688207201622,0.030219,1924.0,1923.8,5.19792]
[1688207201826,0.030219,1924.0,1923.9,5.19777]
[1688207203665,0.030219,1924.0,1923.8,10.39585]
[1688207203958,0.030219,1924.0,1923.8,5.19792]
[1688207204346,0.030219,1924.0,1923.8,10.39596]
[1688207212481,0.030219,1924.0,1923.8,12.99498]
[1688207215094,0.030219,1924.0,1923.8,10.39596]
[1688207216294,0.030219,1924.0,1923.8,12.99498]
[1688207217695,0.030219,1924.0,1923.8,15.68250184]
[1688207217858,0.030219,1924.0,1923.8,17.12127702]
[1688207222193,0.030219,1924.0,1923.8,14.43375518]
[1688207222394,0.030219,1924.0,1923.9,3.16752184]
[1688207222594,0.030219,1924.0,1923.9,16.16194184]
[1688207225598,0.030219,1924.2,1923.9,16.16194184]
[1688207225898,0.030219,1924.2,1923.9,18.19485804]
[1688207235092,0.030219,1924.2,1923.9,16.16194184]
[1688207245014,2.4369,1924.4,1923.9,16.16194184]
[1688207245226,0.030219,1924.3,1923.9,16.16194184]
[1688207250334,2.4369,1924.4,1923.9,17.51294184]
[1688207250547,0.030219,1924.6,1924.0,4.348]
[1688207250830,1.821819,1924.6,1924.1,19.19334184]
[1688207257809,3.165819,1924.6,1924.1,13.56154184]
[1688207258009,2.2924,1924.5,1924.1,15.68015184]
[1688207258241,3.6354,1924.5,1924.1,13.08154184]
[1688207258539,0.030219,1924.4,1924.1,13.08154184]
[1688207258951,0.030219,1924.4,1924.1,15.68015184]
[1688207281986,2.2924,1924.5,1924.1,15.68015184]
[1688207282288,0.030219,1924.4,1924.1,15.68015184]
[1688207282835,2.84235132,1924.8,1924.2,3.16752184]
[1688207283117,0.030219,1924.8,1924.3,33.43281405]
[1688207283318,0.030219,1924.8,1924.5,31.17661]
[1688207283483,0.030219,1924.8,1924.7,20.78243]
[1688207287015,2.300819,1924.9,1924.7,20.78243]
[1688207287786,1.16652435,1925.1,1924.8,2.68752184]
[1688207287989,0.12681935,1925.1,1924.9,20.78027]
[1688207288192,0.54487304,1925.1,1924.9,23.46779184]
[1688207288403,0.12681935,1925.1,1924.9,23.46779184]
[1688207289480,0.12681935,1925.1,1924.9,18.27272184]
[1688207289689,3.6286,1925.2,1924.9,18.27272184]
[1688207291691,3.6286,1925.2,1924.9,20.61951702]
[1688207291888,3.3799874,1925.3,1925.0,2.68752184]
[1688207292115,4.2136,1925.3,1925.1,12.98632]
[1688207292309,4.2136,1925.3,1925.1,15.67384184]
[1688207292499,4.2136,1925.3,1925.1,12.98632]
[1688207292821,2.4302,1925.3,1925.1,12.98632]
[1688207298793,2.79134667,1925.4,1925.2,2.68752184]
[1688207298998,2.79134667,1925.4,1925.3,12.98497]
[1688207298999,1.75184567,1925.4,1925.3,12.98497]
[1688207299222,0.40784567,1925.4,1925.3,10.38798]
[1688207299544,3.68350926,1925.5,1925.3,10.38798]
[1688207299841,1.351,1925.4,1925.3,10.38798]
[1688207301443,10.34561779,1925.5,1925.3,10.38798]
[1688207301597,12.07461057,1925.5,1925.3,10.38798]
[1688207302408,3.80110779,1925.5,1925.3,12.98497]
[1688207302611,2.76163379,1925.5,1925.3,12.98497]
[1688207304042,2.76163379,1925.5,1925.3,10.38798]
[1688207305957,2.76163379,1925.5,1925.3,12.98497]
[1688207307061,2.76163379,1925.5,1925.3,10.38798]
[1688207307361,2.76163379,1925.5,1925.3,12.98497]
[1688207307564,3.45194717,1925.5,1925.3,12.98497]
[1688207308628,0.55333379,1925.5,1925.3,15.67249184]
[1688207308859,0.13220926,1925.5,1925.3,15.67249184]
[1688207309102,7.75755329,1925.8,1925.3,15.67249184]
[1688207309103,4.1092,1925.7,1925.3,15.67249184]
[1688207309268,11.692461,1925.7,1925.3,15.67249184]
[1688207309849,13.39620837,1925.7,1925.3,12.98497]
[1688207310023,18.58912837,1925.7,1925.3,12.98497]
[1688207311228,1.344,1925.6,1925.3,12.98497]
[1688207311435,6.53726,1925.6,1925.3,12.98497]
[1688207311662,6.53726,1925.6,1925.3,15.67249184]
[1688207311859,5.148541,1925.7,1925.3,17.23974102]
[1688207312168,5.148541,1925.7,1925.3,15.67249184]
[1688207312324,4.1092,1925.7,1925.3,15.67249184]
[1688207312754,9.30214,1925.7,1925.3,15.67249184]
[1688207313164,10.64914,1925.7,1925.3,15.67249184]
[1688207313362,11.688469,1925.7,1925.3,15.67249184]
[1688207313530,10.341469,1925.7,1925.3,15.67249184]
[1688207316034,6.90609658,1925.7,1925.3,12.98497]
[1688207317163,12.09902658,1925.7,1925.3,12.98497]
[1688207317880,2.3843,1925.7,1925.4,2.68752184]
[1688207318029,2.3843,1925.7,1925.5,12.98362]
[1688207320237,0.67500084,1925.8,1925.5,15.67114184]
[1688207320435,0.62500084,1925.8,1925.5,15.67114184]
[1688207321987,5.81765084,1925.8,1925.5,12.98362]
[1688207322194,5.81765084,1925.8,1925.5,10.3869]
[1688207322989,5.81765084,1925.8,1925.1,10.13357]
[1688207322990,0.01647601,1925.7,1925.1,4.25689]
[1688207323292,5.19327,1925.6,1925.4,5.19368]
[1688207323982,5.19327,1925.6,1925.4,10.3874]
[1688207324767,6.56053601,1925.7,1925.4,12.98426]
[1688207325091,1.36747601,1925.7,1925.4,12.98426]
[1688207325292,0.01647601,1925.7,1925.4,12.98426]
[1688207326879,6.56040601,1925.7,1925.4,10.3874]
[1688207327078,8.10479913,1925.7,1925.4,10.3874]
[1688207328797,8.10479913,1925.7,1925.4,12.98426]
[1688207330394,1.347,1925.6,1925.4,10.3874]
[1688207330898,1.347,1925.6,1925.4,12.98426]
[1688207331587,1.347,1925.5,1925.2,5.19403]
[1688207331788,1.351,1925.4,1925.3,5.19385]
[1688207332102,1.351,1925.4,1925.2,10.38815]
[1688207332673,1.351,1925.4,1925.2,12.98528]
[1688207332877,1.71172,1925.4,1925.2,12.98528]
[1688207333475,1.71172,1925.4,1925.2,10.38815]
[1688207334001,1.71172,1925.4,1925.1,5.19435]
[1688207334197,1.351,1925.3,1925.1,10.38877]
[1688207334596,3.34572,1925.4,1925.1,10.38877]
[1688207335000,8.53947,1925.4,1925.1,10.38877]
[1688207336494,12.0215,1925.4,1925.1,10.38877]
[1688207337882,12.0215,1925.4,1925.1,10.259407]
[1688207340027,13.3725,1925.4,1925.1,10.259407]
[1688207341703,13.3725,1925.4,1925.1,5.064987]
[1688207341904,14.33536,1925.4,1924.9,5.19488]
[1688207342112,2.68825,1925.3,1924.9,5.19488]
[1688207342287,5.19428,1925.2,1924.9,5.19488]
[1688207342611,10.38856,1925.2,1924.9,5.19488]
[1688207342772,12.65596,1925.2,1924.9,5.19488]
[1688207342970,13.63487879,1925.2,1924.8,5.19518]
[1688207343603,13.63487879,1925.2,1924.8,10.39052]
[1688207343981,2.2674,1925.2,1924.8,12.98819]
[1688207344312,2.2674,1925.2,1924.8,14.33919]
[1688207345018,12.65602,1925.2,1924.8,12.98819]
[1688207345184,7.46171,1925.2,1924.8,12.98819]
[1688207348801,12.65602,1925.2,1924.8,12.98819]
[1688207349202,14.353461,1925.2,1924.8,12.98819]
[1688207351839,14.353461,1925.2,1924.9,5.19908782]
[1688207352597,14.353461,1925.2,1924.9,10.39415782]
[1688207353033,14.353461,1925.2,1924.9,5.19908782]
[1688207354005,14.353461,1925.2,1924.9,10.39415782]
[1688207354412,1.4288077,1925.1,1924.9,10.39415782]
[1688207354614,1.4288077,1925.1,1924.9,5.19908782]
[1688207354840,6.6233577,1925.1,1924.9,5.19908782]
[1688207355605,1.4288077,1925.1,1924.9,10.39415782]
[1688207355822,6.6233577,1925.1,1924.9,5.19908782]
[1688207356035,6.6233577,1925.1,1924.9,10.39415782]
[1688207356544,6.6233577,1925.1,1924.9,5.19908782]
[1688207356909,1.4288077,1925.1,1924.9,5.19908782]
[1688207357304,2.2674,1925.2,1924.9,5.19908782]
[1688207357705,7.46171,1925.2,1924.9,5.19908782]
[1688207358611,12.65602,1925.2,1924.9,5.19908782]
[1688207359138,15.25315,1925.2,1924.9,5.19908782]
[1688207360141,15.25315,1925.2,1924.9,0.00415782]
[1688207360341,11.914605,1925.1,1924.9,0.00415782]
[1688207360706,11.914605,1925.1,1924.8,10.39039]
[1688207361416,10.38929,1925.1,1924.8,10.39039]
[1688207361623,5.19385,1925.4,1924.9,0.00415782]
[1688207361818,12.67471,1925.4,1925.0,12.98669]
[1688207362031,12.67471,1925.4,1925.0,5.19467]
[1688207362032,15.27157,1925.4,1925.0,5.19467]
[1688207362254,15.27157,1925.4,1924.9,5.19910782]
[1688207362255,15.27157,1925.4,1924.9,5.19906782]
[1688207362564,15.27157,1925.4,1924.9,0.00415782]
[1688207363038,15.27157,1925.4,1924.9,5.19919782]
[1688207365425,0.01647601,1925.3,1924.9,0.00415782]
[1688207365759,12.98577,1925.2,1924.8,5.19531]
[1688207365968,14.77547,1925.2,1924.8,5.19531]
[1688207366738,14.77547,1925.2,1924.9,0.0041624]
[1688207367657,14.77547,1925.2,1924.8,10.39048]
[1688207368151,1.7897,1925.2,1924.8,12.98815]
[1688207368361,10.40473601,1925.3,1924.8,14.33615]
[1688207368664,12.16573601,1925.3,1924.9,0.0041624]
[1688207368864,12.16573601,1925.3,1925.0,5.19478]
[1688207369650,12.16573601,1925.3,1925.1,0.00414389]
[1688207376085,10.40473601,1925.3,1925.1,0.00414389]
[1688207376267,5.21056601,1925.3,1925.1,0.00414389]
[1688207376699,5.21056601,1925.3,1925.1,5.19864389]
[1688207376700,5.21047601,1925.3,1925.1,5.19864389]
[1688207379333,1.768968,1925.6,1925.1,5.19864389]
[1688207379497,0.0857486,1925.8,1925.4,7.479]
[1688207379692,0.0857486,1925.8,1925.5,3.0767]
[1688207379896,0.0857486,1925.8,1925.5,21.2536]
[1688207380241,1.4171225,1926.0,1925.5,21.2536]
[1688207380395,1.4171225,1926.0,1925.9,1.351]
[1688207380594,1.4171225,1926.0,1925.9,17.4081]
[1688207381636,1.4171225,1926.0,1925.9,22.8871]
[1688207381817,2.25e-05,1926.0,1925.9,22.8871]
[1688207382422,2.25e-05,1926.0,1925.9,23.62186056]
[1688207382801,2.25e-05,1926.0,1925.9,26.63832853]
[1688207383011,0.1,1926.2,1926.1,21.05448]
[1688207383206,0.1,1926.2,1926.1,21.53448]
[1688207383638,0.1,1926.2,1926.1,21.55094626]
[1688207384344,0.1,1926.2,1926.1,22.90194626]
[1688207384642,0.0993158,1926.3,1926.1,22.90599762]
[1688207384802,0.0993158,1926.3,1926.2,1.351]
[1688207385007,0.0993158,1926.3,1926.2,14.8099]
[1688207385331,0.0993158,1926.3,1926.2,18.39455005]
[1688207385641,0.0993158,1926.3,1926.2,19.81394211]
[1688207385844,5.8e-06,1926.3,1926.2,19.81394211]